Workbook

Sheet 1. Stammdaten (Empfänger)
B1: CONFIDENTIAL
B2: Stammdaten | J2: Bearbeitungshinweise für Zuschussempfangende Partei (ZE): Bitte füllen Sie zuerst die folgenden Stammdaten aus, bevor Sie dann den Reiter "Budget" ausfüllen. Bitte füllen Sie nur die blau hinterlegten Zellen aus. Alle anderen Zellen werden automatisch berechnet.
B4: Name der ZE: | H4: =IF(C4="Bitte eintragen","- Bitte den Namen Ihres Vereins im Feld <Name des Zuschussempfängers> eintragen; "," ") -> 
B6: Handelt es sich um das erste Budget oder um eine Vertragsanpassung? | C6: Auswählen | G6: Nur bei Vertragsergänzung auswählen | H6: =IF(C6="Vertragsanpassung",1,0) -> 0
B7: Titel des Projekts | H7: =IF(C7="Veranstaltung",1,IF(C7="Projekt",1,0)) -> 0
B8: Vertragsnummer
B9: Benötigen Sie Verwaltungsgemeinkosten? | C9: Auswählen | D9: Bitte die Höhe der Verwaltungsgemein-kosten in Prozent angeben | H9: =IF(C9="Ja, anderer Betrag",1,0) -> 0
B10: Leisten Sie einen (finanziellen) Eigenbeitrag? | C10: Auswählen | D10: Höhe in EUR | H10: =IF(C10="Ja, anderer Betrag",1,0) -> 0
B11: Von wie vielen Gebern soll das Projekt mitfinanziert werden (neben der GIZ)? | C11: Auswählen | D11: Name des Drittmittelgebers | F11: Höhe der Drittmittel in EUR
D12: Name des Drittmittelgebers | F12: Höhe der Drittmittel in EUR | H12: =IF(C12="Ja",1,0) -> 0
D13: Name des Drittmittelgebers | F13: Höhe der Drittmittel in EUR | H13: =IF(C13="Ja",1,0) -> 0
D14: Name des Drittmittelgebers | F14: Höhe der Drittmittel in EUR
D15: Name des Drittmittelgebers | F15: Höhe der Drittmittel in EUR
D16: Name des Drittmittelgebers | F16: Höhe der Drittmittel in EUR
D17: Name des Drittmittelgebers | F17: Höhe der Drittmittel in EUR
B18: Sollen Mittel an Drittempfänger-Organisationen weitergeleitet werden? (Bitte beachten Sie, dass hiermit keine Leistungen gemeint sind) | C18: Auswählen | D18: Das sind Partnerorganisationen, die eigenständig einen Teil des zu finanzierenden Projekts der ZE umsetzen. Es muss ein gesondertes Budget eingereicht und eine kaufmännische und rechtliche Eignungsprüfung (nur die Kriterien: Rechtspersönlichkeit und Gemeinnützigkeit) durch das GIZ-Projekt durchgeführt werden.
B19: Werden Medikamente und/oder Pestizide und/oder Mineraldünger beschafft? | C19: Auswählen | D19: Ein gesonderter, GIZ-interner Genehmigungsprozess ist notwendig
B20: Beträgt der Sachbeschaffungsanteil mehr als EUR 1.000.000 oder mehr als 50% bei einem Vertragswert der Finanzierung von mindestens EUR 400.000? | C20: Auswählen | D20: Ein gesonderter, GIZ-interner Genehmigungsprozess ist notwendig
B21: Werden Baumaßnahmen finanziert? | C21: Auswählen | D21: Ein gesonderter, GIZ- interner Genehmigungsprozess ist notwendig. Bitte beachten Sie, dass Baumaßnahmen im Rahmen eines örtlichen Zuschusses nur in seltenen Ausnahmen durch die GIZ genehmigt werden.
B22: Sollen im Budget Ausfüllhilfen angezeigt werden? "Ja" zum Bearbeiten empfohlen "Nein" zur besseren Übersicht empfohlen | C22: Auswählen
B24: Datum der Erstellung des Budgets:

Sheet Budget Finanzierungen
B1: CONFIDENTIAL
A2: =IF('1. Stammdaten (Empfänger)'!C4="","BITTE ZUERST REITER 'Stammdaten' AUSFÜLLEN (s.u.)",CONCATENATE("Budget / Finanzierungsplan - Anlage 1",CHAR(10),'1. Stammdaten (Empfänger)'!C4," - ",'1. Stammdaten (Empfänger)'!C7,"",'1. Stammdaten (Empfänger)'!E7,"",IF(L6="VE",CONCATENATE(" - ",'1. Stammdaten (Empfänger)'!G6," VERTRAGSERGÄNZUNG",""),""))) -> BITTE ZUERST REITER 'Stammdaten' AUSFÜLLEN (s.u.) | J2: ='1. Stammdaten (Empfänger)'!C24 -> 00:00:00 | N2: Keine Änderung | O2: Bearbeitunghinweise: Bitte füllen Sie zuerst die Stammdaten aus, bevor Sie dann diesen Reiter "Budget" ausfüllen. Bitte füllen Sie im Reiter 'Budget' nur die blau hinterlegten Zellen aus. Alle anderen Zellen werden automatisch berechnet.
A3: =IF(NOT(ISBLANK('1. Stammdaten (Empfänger)'!C8)),CONCATENATE("Vertragsnummer: ",'1. Stammdaten (Empfänger)'!C8),"") -> 
J4: 2025-02 | N4: Änderung
B5: Beschreibung | C5: Code | D5: Anzahl | E5: Einheit (Person) | F5: Anzahl | G5: Einheit (z.B. Monat, Vertrag, Flug…) | H5: Förderfähig bis zu in EUR (Preis pro Einheit) | I5: Gesamt GIZ Anteil in EUR (bis zu) | J5: Eigenbeitrag / Drittfinanzierung in EUR (bis zu) | L5: =IF($L$6="VE",CONCATENATE("Bei Vertragsanpassungen:",CHAR(10),"hat sich diese Budgetzeile geändert?"),"") ->  | O5: Generelle Hinweise: Dieses Format des Budgets gilt als Abrechnungsgrundlage. Sie können gerne für Ihren internen Gebrauch weitere Dateien mit ausführlicheren Informationen erstellen. Alle Positionen, die im Budget aufgeführt sind, müssen sich in der Projektbeschreibung wiederfinden, um den Projektbezug ersichtlich zu machen. Die Tabelle ist mit Formeln gespeist, welche beibehalten werden müssen. Bitte behalten Sie die Formatierung mit zwei Nachkommastellen bei. Es empfiehlt sich, Einheiten, wenn möglich, aufzurunden. Die Kosten werden mit einem Wert "bis zu" vereinbart.
B6: =IF('1. Stammdaten (Empfänger)'!C22="Ja",CONCATENATE("Hinweis: Blaue Felder durch ",IF('1. Stammdaten (Empfänger)'!C4="","die Zuschussempfangende Partei",'1. Stammdaten (Empfänger)'!C4)," auszufüllen"),"") ->  | I6: =IF('1. Stammdaten (Empfänger)'!C22="Ja","Hinweis: Wird automatisch ausgefüllt","") ->  | L6: =IF('1. Stammdaten (Empfänger)'!C6="Vertragsanpassung","VE","NOVE") -> NOVE
A7: 1 | B7: Personal (Hinweis: Es können ausschließlich Personaleinzelkosten (monatliches Arbeitgeberbrutto-Entgelt) abgerechnet werden. Zuschläge wie Personalgemeinkosten, die anteilig auf Personal berechnet werden, sind nicht förderfähig. Bitte erfassen Sie nur Funktionsbezeichnungen, keine Namen von Einzelpersonen. a) Kosten für Arbeitnehmer*innen der ZE (nur Mitarbeitende ihrer Organisation): Der Nachweis muss in Form von Gehaltsabrechnungen bzw. bei anteiliger Finanzierung in Form von Gehaltsabrechnungen und Zeitaufschrieben erfolgen (siehe Link in 1b). b) Kosten für integrierte Gutachter*innen (Selbständige oder Angestellte Dritter, die an die ZE entsandt wurden), welche jeweils unter vergleichbaren Bedingungen wie angestellte Arbeitnehmer*innen tätig sind, sofern dies nach dem jeweils anwendbaren Recht des betreffenden Vertrages mit diesen integrierten Gutachter*innen rechtlich zulässig ist. Nachweisformen siehe: (Anlage 3a - Anforderungen an Zuschussempfänger hinsichtlich Budget und finanzieller Abwicklung) | D7: =IF('1. Stammdaten (Empfänger)'!C22="Ja",CONCATENATE("AUSFÜLLHILFE: ",Beispiel!O6),"") ->  | I7: =SUM(I8:I44) -> 0 | J7: Die anteilige Finanzierung von Budgetlinien soll vermieden und nur auf Personalkosten sowie Fair-Shared-Kosten angewandt werden. Weitere Kosten, welche im Rahmen der Projektumsetzung anfallen und nicht durch die GIZ finanziert werden, sind separat zu kalkulieren, entweder als Eigenbeitrag oder finanzieller Beitrag Dritter. | L7: =IF(L6="VE","ACHTUNG: Kosten, die aufgrund von Währungsschwankungen entstehen, können nicht von der GIZ übernommen werden.","") -> 
E8: Person | G8: Monate | I8: =ROUND(D8*F8*H8,2) -> 0 | L8: Keine Änderung
E9: Person | G9: Monate | I9: =ROUND(D9*F9*H9,2) -> 0 | L9: Keine Änderung
E10: Person | G10: Monate | I10: 0 | L10: Keine Änderung
E11: Person | G11: Monate | I11: 0 | L11: Keine Änderung
E12: Person | G12: Monate | I12: 0 | L12: Keine Änderung
E13: Person | G13: Monate | I13: 0 | L13: Keine Änderung
E14: Person | G14: Monate | I14: =ROUND(D14*F14*H14,2) -> 0 | L14: Keine Änderung
E15: Person | G15: Monate | I15: =ROUND(D15*F15*H15,2) -> 0 | L15: Keine Änderung
E16: Person | G16: Monate | I16: 0 | L16: Keine Änderung
E17: Person | G17: Monate | I17: =ROUND(D17*F17*H17,2) -> 0 | L17: Keine Änderung
E18: Person | G18: Monate | I18: 0 | L18: Keine Änderung
E19: Person | G19: Monate | I19: 0 | L19: Keine Änderung
E20: Person | G20: Monate | I20: 0 | L20: Keine Änderung
E21: Person | G21: Monate | I21: 0 | L21: Keine Änderung
E22: Person | G22: Monate | I22: 0 | L22: Keine Änderung
E23: Person | G23: Monate | I23: 0 | L23: Keine Änderung
E24: Person | G24: Monate | I24: 0 | L24: Keine Änderung
E25: Person | G25: Monate | I25: 0 | L25: Keine Änderung
E26: Person | G26: Monate | I26: 0 | L26: Keine Änderung
E27: Person | G27: Monate | I27: 0 | L27: Keine Änderung
E28: Person | G28: Monate | I28: =ROUND(D28*F28*H28,2) -> 0 | L28: Keine Änderung
E29: Person | G29: Monate | I29: 0 | L29: Keine Änderung
E30: Person | G30: Monate | I30: 0 | L30: Keine Änderung
E31: Person | G31: Monate | I31: 0 | L31: Keine Änderung
E32: Person | G32: Monate | I32: 0 | L32: Keine Änderung
E33: Person | G33: Monate | I33: 0 | L33: Keine Änderung
E34: Person | G34: Monate | I34: 0 | L34: Keine Änderung
E35: Person | G35: Monate | I35: 0 | L35: Keine Änderung
E36: Person | G36: Monate | I36: 0 | L36: Keine Änderung
E37: Person | G37: Monate | I37: 0 | L37: Keine Änderung
E38: Person | G38: Monate | I38: 0 | L38: Keine Änderung
E39: Person | G39: Monate | I39: 0 | L39: Keine Änderung
E40: Person | G40: Monate | I40: 0 | L40: Keine Änderung
E41: Person | G41: Monate | I41: 0 | L41: Keine Änderung
E42: Person | G42: Monate | I42: 0 | L42: Keine Änderung
E43: Person | G43: Monate | I43: 0 | L43: Keine Änderung
E44: Person | G44: Monate | I44: 0 | L44: Keine Änderung
A45: 2 | B45: Externe Dienstleistungen (Art/Inhalt der Leistung) | D45: =IF('1. Stammdaten (Empfänger)'!C22="Ja",CONCATENATE("AUSFÜLLHILFE: ",Beispiel!O12),"") ->  | I45: =SUM(I46:I74) -> 0
D46: Vertrag/Verträge | I46: 0 | L46: Keine Änderung
D47: Vertrag/Verträge | I47: 0 | L47: Keine Änderung
D48: Vertrag/Vertäge | I48: 0 | L48: Keine Änderung
D49: Vertrag/Verträge | I49: 0 | L49: Keine Änderung
D50: Vertrag/Verträge | I50: 0 | L50: Keine Änderung
D51: Vertrag/Verträge | I51: 0 | L51: Keine Änderung
D52: Vertrag/Verträge | I52: 0 | L52: Keine Änderung
D53: Vertrag/Verträge | I53: 0 | L53: Keine Änderung
D54: Vertrag/Verträge | I54: 0 | L54: Keine Änderung
D55: Vertrag/Verträge | I55: 0 | L55: Keine Änderung
D56: Vertrag/Verträge | I56: 0 | L56: Keine Änderung
D57: Vertrag/Verträge | I57: 0 | L57: Keine Änderung
D58: Vertrag/Verträge | I58: 0 | L58: Keine Änderung
D59: Vertrag/Verträge | I59: 0 | L59: Keine Änderung
D60: Vertrag/Verträge | I60: 0 | L60: Keine Änderung
D61: Vertrag/Verträge | I61: 0 | L61: Keine Änderung
D62: Vertrag/Verträge | I62: 0 | L62: Keine Änderung
D63: Vertrag/Verträge | I63: 0 | L63: Keine Änderung
D64: Vertrag/Verträge | I64: 0 | L64: Keine Änderung
D65: Vertrag/Verträge | I65: 0 | L65: Keine Änderung
D66: Vertrag/Verträge | I66: 0 | L66: Keine Änderung
D67: Vertrag/Verträge | I67: 0 | L67: Keine Änderung
D68: Vertrag/Verträge | I68: 0 | L68: Keine Änderung
D69: Vertrag/Verträge | I69: 0 | L69: Keine Änderung
D70: Vertrag/Verträge | I70: 0 | L70: Keine Änderung
D71: Vertrag/Verträge | I71: 0 | L71: Keine Änderung
D72: Vertrag/Verträge | I72: 0 | L72: Keine Änderung
D73: Vertrag/Verträge | I73: 0 | L73: Keine Änderung
D74: Vertrag/Verträge | I74: 0 | L74: Keine Änderung
A75: 3 | B75: Transportkosten / Reisekosten | D75: =IF('1. Stammdaten (Empfänger)'!C22="Ja",CONCATENATE("AUSFÜLLHILFE: ",Beispiel!O23),"") ->  | I75: =SUM(I76:I93) -> 0
I76: 0 | L76: Keine Änderung
I77: 0 | L77: Keine Änderung
I78: 0 | L78: Keine Änderung
I79: 0 | L79: Keine Änderung
I80: 0 | L80: Keine Änderung
I81: 0 | L81: Keine Änderung
I82: 0 | L82: Keine Änderung
I83: 0 | L83: Keine Änderung
I84: 0 | L84: Keine Änderung
I85: 0 | L85: Keine Änderung
I86: 0 | L86: Keine Änderung
I87: 0 | L87: Keine Änderung
I88: 0 | L88: Keine Änderung
I89: 0 | L89: Keine Änderung
I90: 0 | L90: Keine Änderung
I91: 0 | L91: Keine Änderung
I92: 0 | L92: Keine Änderung
I93: 0 | L93: Keine Änderung
A94: 4 | B94: CO2-Kompensation von Flugreisen | D94: =IF('1. Stammdaten (Empfänger)'!C22="Ja",CONCATENATE("AUSFÜLLHILFE: ",Beispiel!O31),"") ->  | I94: =SUM(I95:I99) -> 0
D95: Kompensation | I95: 0 | L95: Keine Änderung
D96: Kompensation | I96: 0 | L96: Keine Änderung
D97: Kompensation | I97: 0 | L97: Keine Änderung
D98: Kompensation | I98: 0 | L98: Keine Änderung
D99: Kompensation | I99: 0 | L99: Keine Änderung
A100: 5 | B100: Beschaffung von Sachgütern | D100: =IF('1. Stammdaten (Empfänger)'!C22="Ja",CONCATENATE("AUSFÜLLHILFE: ",Beispiel!O38),"") ->  | I100: =SUM(I101:I116) -> 0
I101: 0 | L101: Keine Änderung
I102: 0 | L102: Keine Änderung
I103: 0 | L103: Keine Änderung
I104: 0 | L104: Keine Änderung
I105: 0 | L105: Keine Änderung
I106: 0 | L106: Keine Änderung
I107: 0 | L107: Keine Änderung
I108: 0 | L108: Keine Änderung
I109: 0 | L109: Keine Änderung
I110: 0 | L110: Keine Änderung
I111: 0 | L111: Keine Änderung
I112: 0 | L112: Keine Änderung
I113: 0 | L113: Keine Änderung
I114: 0 | L114: Keine Änderung
I115: 0 | L115: Keine Änderung
I116: 0 | L116: Keine Änderung
A117: 6 | B117: Sonstige Kosten / Verbrauchsmaterialien | D117: =IF('1. Stammdaten (Empfänger)'!C22="Ja",CONCATENATE("AUSFÜLLHILFE: ",TRIM(Beispiel!O49)),"") ->  | I117: =SUM(I118:I133) -> 0
I118: 0 | L118: Keine Änderung
I119: 0 | L119: Keine Änderung
I120: 0 | L120: Keine Änderung
I121: 0 | L121: Keine Änderung
I122: 0 | L122: Keine Änderung
I123: 0 | L123: Keine Änderung
I124: 0 | L124: Keine Änderung
I125: 0 | L125: Keine Änderung
I126: 0 | L126: Keine Änderung
I127: 0 | L127: Keine Änderung
I128: 0 | L128: Keine Änderung
I129: 0 | L129: Keine Änderung
I130: 0 | L130: Keine Änderung
I131: 0 | L131: Keine Änderung
I132: 0 | L132: Keine Änderung
I133: 0 | L133: Keine Änderung
A134: 7 | B134: Mittel zur direkten Unterstützung von Drittbegünstigten (Hinweis: Diese Budgetlinie bezieht sich ausschließlich auf finanzielle Beiträge an Drittbegünstigte. Die Beiträge dürfen nicht für den Erwerb von Medikamenten, Pestiziden und/oder Mineraldüngern verwendet werden. Das Auswahlverfahren für die Drittbegünstigten muss in der Projektbeschreibung verdeutlicht sein. Nachweise: siehe Unterbudgetlinie) | D134: =IF('1. Stammdaten (Empfänger)'!C22="Ja",CONCATENATE("AUSFÜLLHILFE: ",TRIM(Beispiel!O60)),"") ->  | I134: =SUM(I135:I144) -> 0 | L134: =IF(L133="VE","ACHTUNG: Kosten, die aufgrund von Währungsschwankungen entstehen, können nicht von der GIZ übernommen werden.","") -> 
B135: XXX (Abrechnung erfolgt gegen …) | I135: =ROUND(D135*H135,2) -> 0 | L135: Keine Änderung
B136: XXX (Abrechnung erfolgt gegen …) | I136: =ROUND(D136*H136,2) -> 0 | L136: Keine Änderung
B137: XXX (Abrechnung erfolgt gegen …) | I137: 0 | L137: Keine Änderung
B138: XXX (Abrechnung erfolgt gegen …) | I138: 0 | L138: Keine Änderung
B139: XXX (Abrechnung erfolgt gegen …) | I139: 0 | L139: Keine Änderung
B140: XXX (Abrechnung erfolgt gegen …) | I140: 0 | L140: Keine Änderung
B141: XXX (Abrechnung erfolgt gegen …) | I141: 0 | L141: Keine Änderung
B142: XXX (Abrechnung erfolgt gegen …) | I142: 0 | L142: Keine Änderung
B143: XXX (Abrechnung erfolgt gegen …) | I143: 0 | L143: Keine Änderung
B144: XXX (Abrechnung erfolgt gegen …) | I144: 0 | L144: Keine Änderung
A145: 8 | B145: Fair Shared Costs (gemäß dem Fair Shared Cost Modell der ZE) | D145: =IF('1. Stammdaten (Empfänger)'!C22="Ja",CONCATENATE("AUSFÜLLHILFE: ",TRIM(Beispiel!O65)),"") ->  | I145: =SUM(I146:I150) -> 0
I146: 0 | L146: Keine Änderung
I147: 0 | L147: Keine Änderung
I148: 0 | L148: Keine Änderung
I149: 0 | L149: Keine Änderung
I150: 0 | L150: Keine Änderung
B151: Zwischensumme - direkte Kosten | I151: =I117+I100+I45+I7+I75+I134+I145+I94 -> 0
A152: 9 | B152: Verwaltungsgemeinkosten | D152: =IF('1. Stammdaten (Empfänger)'!C22="Ja",CONCATENATE("AUSFÜLLHILFE: ",TRIM(Beispiel!O69)),"") ->  | I152: =I153 -> 0
B153: Verwaltungsgemeinkosten (auf Budgetlinie 1-X) | D153: ='1. Stammdaten (Empfänger)'!E9 -> 0 | H153: =I151 -> 0 | I153: =ROUND(D153*H153,2) -> 0 | L153: Keine Änderung
B154: Zwischensumme - Finanzierung durch GIZ (bis zu - gegen Nachweis)* (direkte Kosten + Verwaltungsgemeinkosten) | I154: =I151+I152 -> 0
A155: 10 | B155: Weiterleitung von Mitteln an Drittempfänger - ein detailliertes Budget muss eingereicht werden - | D155: =IF('1. Stammdaten (Empfänger)'!C22="Ja",CONCATENATE("AUSFÜLLHILFE: ",TRIM(Beispiel!O72)),"") ->  | I155: =SUM(I156:I161) -> 0
D156: Weiterleitung | I156: 0 | L156: Keine Änderung
B157: XYZ (Name Drittempfänger-Organisation) | D157: Weiterleitung | H157: 0 | I157: 0 | L157: Keine Änderung
B158: XYZ (Name Drittempfänger-Organisation) | D158: Weiterleitung | H158: 0 | I158: 0 | L158: Keine Änderung
B159: XYZ (Name Drittempfänger-Organisation) | D159: Weiterleitung | H159: 0 | I159: 0 | L159: Keine Änderung
B160: XYZ (Name Drittempfänger-Organisation) | D160: Weiterleitung | H160: 0 | I160: 0 | L160: Keine Änderung
B161: XYZ (Name Drittempfänger-Organisation) | D161: Weiterleitung | H161: 0 | I161: 0 | K161: Anteile in Prozent | L161: Keine Änderung
B162: GIZ Anteil (bis zu - gegen Nachweis)* | I162: =+I154+I155 -> 0 | K162: =IFERROR(I162/$I$172,"") -> 
A163: 11 | B163: Eigenbeitrag / Drittfinanzierung | D163: =IF('1. Stammdaten (Empfänger)'!C22="Ja",CONCATENATE("AUSFÜLLHILFE: ",TRIM(Beispiel!O77)),"") ->  | J163: =SUM(J164:J171) -> 0
B164: =_xlfn.IFS('1. Stammdaten (Empfänger)'!C10="Nein","kein finanzieller Eigenbeitrag", '1. Stammdaten (Empfänger)'!C10="Ja",'1. Stammdaten (Empfänger)'!C4, '1. Stammdaten (Empfänger)'!C10="Auswählen", "bitte füllen Sie die Stammdaten vollständig aus",TRUE,"") -> bitte füllen Sie die Stammdaten vollständig aus | D164: Beitrag | J164: =H164 -> 0 | K164: =IFERROR(J164/$I$172,"") ->  | L164: Keine Änderung
B165: =_xlfn.IFS('1. Stammdaten (Empfänger)'!C11=0,"Keine Drittmittelfinanzierung",'1. Stammdaten (Empfänger)'!C11= "Auswählen","bitte füllen Sie die Stammdaten vollständig aus", '1. Stammdaten (Empfänger)'!C11>0,'1. Stammdaten (Empfänger)'!E11,TRUE,"") -> bitte füllen Sie die Stammdaten vollständig aus | D165: Beitrag | H165: =_xlfn.IFS('1. Stammdaten (Empfänger)'!$C$11="Auswählen", "",'1. Stammdaten (Empfänger)'!$C$11>0,'1. Stammdaten (Empfänger)'!G11, TRUE,"") ->  | J165: =H165 ->  | K165: =IFERROR(J165/$I$172,"") ->  | L165: Keine Änderung
B166: =_xlfn.IFS('1. Stammdaten (Empfänger)'!C11=0,"Keine Drittmittelfinanzierung",'1. Stammdaten (Empfänger)'!C11= "Auswählen","bitte füllen Sie die Stammdaten vollständig aus", '1. Stammdaten (Empfänger)'!C11>0,'1. Stammdaten (Empfänger)'!E12,TRUE,"") -> bitte füllen Sie die Stammdaten vollständig aus | D166: Beitrag | H166: =_xlfn.IFS('1. Stammdaten (Empfänger)'!$C$11="Auswählen", "",'1. Stammdaten (Empfänger)'!$C$11>0,'1. Stammdaten (Empfänger)'!G12, TRUE,"") ->  | L166: Keine Änderung
B167: =_xlfn.IFS('1. Stammdaten (Empfänger)'!C11=0,"Keine Drittmittelfinanzierung",'1. Stammdaten (Empfänger)'!C11= "Auswählen","bitte füllen Sie die Stammdaten vollständig aus", '1. Stammdaten (Empfänger)'!C11>0,'1. Stammdaten (Empfänger)'!E13,TRUE,"") -> bitte füllen Sie die Stammdaten vollständig aus | D167: Beitrag | H167: =_xlfn.IFS('1. Stammdaten (Empfänger)'!$C$11="Auswählen", "",'1. Stammdaten (Empfänger)'!$C$11>0,'1. Stammdaten (Empfänger)'!G13, TRUE,"") ->  | L167: Keine Änderung
B168: =_xlfn.IFS('1. Stammdaten (Empfänger)'!C11=0,"Keine Drittmittelfinanzierung",'1. Stammdaten (Empfänger)'!C11= "Auswählen","bitte füllen Sie die Stammdaten vollständig aus", '1. Stammdaten (Empfänger)'!C11>0,'1. Stammdaten (Empfänger)'!E14,TRUE,"") -> bitte füllen Sie die Stammdaten vollständig aus | D168: Beitrag | H168: =_xlfn.IFS('1. Stammdaten (Empfänger)'!$C$11="Auswählen", "",'1. Stammdaten (Empfänger)'!$C$11>0,'1. Stammdaten (Empfänger)'!G14, TRUE,"") ->  | L168: Keine Änderung
B169: =_xlfn.IFS('1. Stammdaten (Empfänger)'!C11=0,"Keine Drittmittelfinanzierung",'1. Stammdaten (Empfänger)'!C11= "Auswählen","bitte füllen Sie die Stammdaten vollständig aus", '1. Stammdaten (Empfänger)'!C11>0,'1. Stammdaten (Empfänger)'!E15,TRUE,"") -> bitte füllen Sie die Stammdaten vollständig aus | D169: Beitrag | H169: =_xlfn.IFS('1. Stammdaten (Empfänger)'!$C$11="Auswählen", "",'1. Stammdaten (Empfänger)'!$C$11>0,'1. Stammdaten (Empfänger)'!G15, TRUE,"") ->  | L169: Keine Änderung
B170: =_xlfn.IFS('1. Stammdaten (Empfänger)'!C11=0,"Keine Drittmittelfinanzierung",'1. Stammdaten (Empfänger)'!C11= "Auswählen","bitte füllen Sie die Stammdaten vollständig aus", '1. Stammdaten (Empfänger)'!C11>0,'1. Stammdaten (Empfänger)'!E16,TRUE,"") -> bitte füllen Sie die Stammdaten vollständig aus | D170: Beitrag | H170: =_xlfn.IFS('1. Stammdaten (Empfänger)'!$C$11="Auswählen", "",'1. Stammdaten (Empfänger)'!$C$11>0,'1. Stammdaten (Empfänger)'!G16, TRUE,"") ->  | L170: Keine Änderung
B171: =_xlfn.IFS('1. Stammdaten (Empfänger)'!C11=0,"Keine Drittmittelfinanzierung",'1. Stammdaten (Empfänger)'!C11= "Auswählen","bitte füllen Sie die Stammdaten vollständig aus", '1. Stammdaten (Empfänger)'!C11>0,'1. Stammdaten (Empfänger)'!E17,TRUE,"") -> bitte füllen Sie die Stammdaten vollständig aus | D171: Beitrag | H171: =_xlfn.IFS('1. Stammdaten (Empfänger)'!$C$11="Auswählen", "",'1. Stammdaten (Empfänger)'!$C$11>0,'1. Stammdaten (Empfänger)'!G17, TRUE,"") ->  | K171: =IFERROR(J171/$I$172,"") ->  | L171: Keine Änderung
B172: Gesamtfinanzierung | I172: =I162+J163 -> 0 | K172: =SUM(K162:K171) -> 0
B174: *Alle Budgetlinien (mit Ausnahme der Verwaltungsgemeinkosten) müssen gegen Nachweis abgerechnet werden.
B176: Information: Sofern Vergaben für externe Dienstleistungen und/oder für Sachgüter und/oder Lieferungen von GIZ Geldern finanziert werden sollen, müssen die relevanten Vergaberichtlinien gemäß Vertragstext eingehalten werden!
B179: Gewinne der ZE werden nicht finanziert.
B181: Bei Vertragsergänzungen: Bitte nehmen Sie Budgetanpassungen auf Basis des zuletzt vertraglich vereinbartem Budgets vor und markieren Sie die Änderungen farblich. Kosten, die aufgrund von Währungsschwankungen enstehen, können nicht von der GIZ übernommen werden.

Sheet Weiterleitung von Mitteln
B1: CONFIDENTIAL
A2: Budget/Finanzierungsplan - Anlage 1 | D2: Name der Drittempfänger-Organisation: | J2: ='1. Stammdaten (Empfänger)'!C24 -> 00:00:00 | N2: Keine Änderung
A3: =IF(NOT(ISBLANK('1. Stammdaten (Empfänger)'!C8)),CONCATENATE("Vertragsnummer: ",'1. Stammdaten (Empfänger)'!C8),"") ->  | N3: Änderung
B4: Beschreibung | C4: Code | D4: Menge | E4: Einheit (Person) | F4: Anzahl | G4: Einheit (z.B. Monat, Vertrag, Flug…) | H4: Förderfähig bis zu in EUR (Preis pro Einheit) | I4: Gesamt GIZ Anteil in EUR (bis zu) | J4: Eigenbeitrag / Drittfinanzierung in EUR (bis zu) | L4: =IF($L$5="VE",CONCATENATE("Bei Vertragsanpassungen:",CHAR(10),"hat sich diese Budgetzeile geändert?"),"") -> 
B5: =IF('1. Stammdaten (Empfänger)'!C22="Ja","Hinweis: Blaue Felder durch den Drittempfänger auszufüllen","") ->  | I5: =IF('1. Stammdaten (Empfänger)'!C22="Ja","Hinweis: Wird automatisch ausgefüllt","") ->  | L5: =IF('1. Stammdaten (Empfänger)'!C6="Vertragsanpassung","VE","NOVE") -> NOVE
A6: 1 | B6: Personal (Hinweis: Es können ausschließlich Personaleinzelkosten (monatliches Arbeitgeberbrutto-Entgelt) abgerechnet werden. Zuschläge wie Personalgemeinkosten, die anteilig auf Personal berechnet werden, sind nicht förderfähig. Bitte erfassen Sie nur Funktionsbezeichnungen, keine Namen von Einzelpersonen. a) Kosten für Arbeitnehmer*innen der ZE (nur Mitarbeitende ihrer Organisation): Der Nachweis muss in Form von Gehaltsabrechnungen bzw. bei anteiliger Finanzierung in Form von Gehaltsabrechnungen und Zeitaufschrieben erfolgen (siehe Link in 1b). b) Kosten für integrierte Gutachter*innen (Selbständige oder Angestellte Dritter, die an die ZE entsandt wurden), welche jeweils unter vergleichbaren Bedingungen wie angestellte Arbeitnehmer*innen tätig sind, sofern dies nach dem jeweils anwendbaren Recht des betreffenden Vertrages mit diesen integrierten Gutachter*innen rechtlich zulässig ist. Nachweisformen siehe: (Anlage 3a - Anforderungen an Zuschussempfänger hinsichtlich Budget und finanzieller Abwicklung) | D6: =IF('1. Stammdaten (Empfänger)'!C22="Ja",CONCATENATE("AUSFÜLLHILFE: ",Beispiel!O6),"") ->  | I6: =SUM(I7:I43) -> 0 | J6: Die anteilige Finanzierung von Budgetlinien soll vermieden und nur auf Personalkosten sowie Fair-Shared-Kosten angewandt werden. | K6: =IF(SUM(I6,#REF!,I44)>0.4*I144,1,0) ->  | L6: =IF(L5="VE","ACHTUNG: Kosten, die aufgrund von Währungsschwankungen entstehen, können nicht von der GIZ übernommen werden.","") -> 
E7: Person | G7: Monate | I7: =ROUND(D7*F7*H7,2) -> 0 | L7: Keine Änderung
E8: Person | G8: Monate | I8: =ROUND(D8*F8*H8,2) -> 0 | L8: Keine Änderung
E9: Person | G9: Monate | I9: 0 | L9: Keine Änderung
E10: Person | G10: Monate | I10: 0 | L10: Keine Änderung
E11: Person | G11: Monate | I11: =ROUND(D11*F11*H11,2) -> 0 | L11: Keine Änderung
E12: Person | G12: Monate | I12: 0 | L12: Keine Änderung
E13: Person | G13: Monate | I13: 0 | L13: Keine Änderung
E14: Person | G14: Monate | I14: 0 | L14: Keine Änderung
E15: Person | G15: Monate | I15: 0 | L15: Keine Änderung
E16: Person | G16: Monate | I16: 0 | L16: Keine Änderung
E17: Person | G17: Monate | I17: =ROUND(D17*F17*H17,2) -> 0 | L17: Keine Änderung
E18: Person | G18: Monate | I18: =ROUND(D18*F18*H18,2) -> 0
E19: Person | G19: Monate | I19: 0
E20: Person | G20: Monate | I20: 0
E21: Person | G21: Monate | I21: 0
E22: Person | G22: Monate | I22: 0
E23: Person | G23: Monate | I23: 0
E24: Person | G24: Monate | I24: 0 | L24: Keine Änderung
E25: Person | G25: Monate | I25: 0
E26: Person | G26: Monate | I26: 0
E27: Person | G27: Monate | I27: 0
E28: Person | G28: Monate | I28: 0
E29: Person | G29: Monate | I29: 0
E30: Person | G30: Monate | I30: 0 | L30: Keine Änderung
E31: Person | G31: Monate | I31: 0 | L31: Keine Änderung
E32: Person | G32: Monate | I32: 0 | L32: Keine Änderung
E33: Person | G33: Monate | I33: 0 | L33: Keine Änderung
E34: Person | G34: Monate | I34: 0 | L34: Keine Änderung
E35: Person | G35: Monate | I35: 0 | L35: Keine Änderung
E36: Person | G36: Monate | I36: 0 | L36: Keine Änderung
E37: Person | G37: Monate | I37: 0 | L37: Keine Änderung
E38: Person | G38: Monate | I38: 0 | L38: Keine Änderung
E39: Person | G39: Monate | I39: 0 | L39: Keine Änderung
E40: Person | G40: Monate | I40: 0 | L40: Keine Änderung
E41: Person | G41: Monate | I41: 0 | L41: Keine Änderung
E42: Person | G42: Monate | I42: 0 | L42: Keine Änderung
E43: Person | G43: Monate | I43: 0 | L43: Keine Änderung
A44: 2 | B44: Externe Dienstleistungen (Art/Inhalt der Leistung) | D44: =IF('1. Stammdaten (Empfänger)'!C22="Ja",CONCATENATE("AUSFÜLLHILFE: ",Beispiel!O12),"") ->  | I44: =SUM(I45:I61) -> 0
D45: Vertrag/Verträge | I45: 0 | L45: Keine Änderung
D46: Vertrag/Verträge | I46: 0 | L46: Keine Änderung
D47: Vertrag/Verträge | I47: 0 | L47: Keine Änderung
D48: Vertrag/Verträge | I48: 0 | L48: Keine Änderung
D49: Vertrag/Verträge | I49: 0 | L49: Keine Änderung
D50: Vertrag/Verträge | I50: 0 | L50: Keine Änderung
D51: Vertrag/Verträge | I51: 0 | L51: Keine Änderung
D52: Vertrag/Verträge | I52: 0 | L52: Keine Änderung
D53: Vertrag/Verträge | I53: 0 | L53: Keine Änderung
D54: Vertrag/Verträge | I54: 0 | L54: Keine Änderung
D55: Vertrag/Verträge | I55: 0 | L55: Keine Änderung
D56: Vertrag/Verträge | I56: 0 | L56: Keine Änderung
D57: Vertrag/Verträge | I57: 0 | L57: Keine Änderung
D58: Vertrag/Verträge | I58: 0 | L58: Keine Änderung
D59: Vertrag/Verträge | I59: 0 | L59: Keine Änderung
D60: Vertrag/Verträge | I60: 0 | L60: Keine Änderung
D61: Vertrag/Verträge | I61: 0 | L61: Keine Änderung
A62: 3 | B62: Transportkosten / Reisekosten | D62: =IF('1. Stammdaten (Empfänger)'!C22="Ja",CONCATENATE("AUSFÜLLHILFE: ",Beispiel!O23),"") ->  | I62: =SUM(I63:I78) -> 0
I63: 0 | L63: Keine Änderung
I64: 0 | L64: Keine Änderung
I65: 0 | L65: Keine Änderung
I66: 0 | L66: Keine Änderung
I67: 0 | L67: Keine Änderung
I68: 0 | L68: Keine Änderung
I69: 0 | L69: Keine Änderung
I70: 0 | L70: Keine Änderung
I71: 0 | L71: Keine Änderung
I72: 0 | L72: Keine Änderung
I73: 0 | L73: Keine Änderung
I74: 0 | L74: Keine Änderung
I75: 0 | L75: Keine Änderung
I76: 0 | L76: Keine Änderung
I77: 0 | L77: Keine Änderung
I78: 0 | L78: Keine Änderung
A79: 4 | B79: CO2-Kompensation von Flugreisen | D79: =IF('1. Stammdaten (Empfänger)'!C22="Ja",CONCATENATE("AUSFÜLLHILFE: ",Beispiel!O31),"") ->  | I79: =SUM(I80:I91) -> 0
D80: Kompensation | I80: 0 | L80: Keine Änderung
D81: Kompensation | I81: 0 | L81: Keine Änderung
D82: Kompensation | I82: 0 | L82: Keine Änderung
D83: Kompensation | I83: 0 | L83: Keine Änderung
D84: Kompensation | I84: 0 | L84: Keine Änderung
D85: Kompensation | I85: 0 | L85: Keine Änderung
D86: Kompensation | I86: 0 | L86: Keine Änderung
D87: Kompensation | I87: 0 | L87: Keine Änderung
D88: Kompensation | I88: 0 | L88: Keine Änderung
D89: Kompensation | I89: 0 | L89: Keine Änderung
D90: Kompensation | I90: 0 | L90: Keine Änderung
D91: Kompensation | I91: 0 | L91: Keine Änderung
A92: 5 | B92: Beschaffung von Sachgütern | D92: =IF('1. Stammdaten (Empfänger)'!C22="Ja",CONCATENATE("AUSFÜLLHILFE: ",Beispiel!O38),"") ->  | I92: =SUM(I93:I108) -> 0
I93: 0 | L93: Keine Änderung
I94: 0 | L94: Keine Änderung
I95: 0 | L95: Keine Änderung
I96: 0 | L96: Keine Änderung
I97: 0 | L97: Keine Änderung
I98: 0 | L98: Keine Änderung
I99: 0 | L99: Keine Änderung
I100: 0 | L100: Keine Änderung
I101: 0 | L101: Keine Änderung
I102: 0 | L102: Keine Änderung
I103: 0 | L103: Keine Änderung
I104: 0 | L104: Keine Änderung
I105: 0 | L105: Keine Änderung
I106: 0 | L106: Keine Änderung
I107: 0 | L107: Keine Änderung
I108: 0 | L108: Keine Änderung
A109: 6 | B109: Sonstige Kosten / Verbrauchsmaterialien | D109: =IF('1. Stammdaten (Empfänger)'!C22="Ja",CONCATENATE("AUSFÜLLHILFE: ",TRIM(Beispiel!O49)),"") ->  | I109: =SUM(I110:I125) -> 0
I110: 0 | L110: Keine Änderung
I111: 0 | L111: Keine Änderung
I112: 0 | L112: Keine Änderung
I113: 0 | L113: Keine Änderung
I114: 0 | L114: Keine Änderung
I115: 0 | L115: Keine Änderung
I116: 0 | L116: Keine Änderung
I117: 0 | L117: Keine Änderung
I118: 0 | L118: Keine Änderung
I119: 0 | L119: Keine Änderung
I120: 0 | L120: Keine Änderung
I121: 0 | L121: Keine Änderung
I122: 0 | L122: Keine Änderung
I123: 0 | L123: Keine Änderung
I124: 0 | L124: Keine Änderung
I125: 0 | L125: Keine Änderung
A126: 7 | B126: Mittel zur direkten Unterstützung von Drittbegünstigten (Hinweis: Diese Budgetlinie bezieht sich ausschließlich auf finanzielle Beiträge an Drittbegünstigte. Die Beiträge dürfen nicht für den Erwerb von Medikamenten, Pestiziden und/oder Mineraldüngern verwendet werden. Das Auswahlverfahren für die Drittbegünstigten muss in der Projektbeschreibung verdeutlicht sein. Nachweise: siehe Unterbudgetlinie) | D126: =IF('1. Stammdaten (Empfänger)'!C22="Ja",CONCATENATE("AUSFÜLLHILFE: ",TRIM(Beispiel!O60)),"") ->  | I126: =SUM(I127:I132) -> 0
B127: XXX (Abrechnung erfolgt gegen…) | I127: =ROUND(D127*H127,2) -> 0 | L127: Keine Änderung
B128: XXX (Abrechnung erfolgt gegen…) | I128: =ROUND(D128*H128,2) -> 0 | L128: Keine Änderung
B129: XXX (Abrechnung erfolgt gegen…) | I129: =ROUND(D129*H129,2) -> 0 | L129: Keine Änderung
B130: XXX (Abrechnung erfolgt gegen…) | I130: 0 | L130: Keine Änderung
B131: XXX (Abrechnung erfolgt gegen…) | I131: 0 | L131: Keine Änderung
B132: XXX (Abrechnung erfolgt gegen…) | I132: 0 | L132: Keine Änderung
A133: 8 | B133: Fair Shared Costs (gemäß dem Fair Shared Cost Modell der ZE) | D133: =IF('1. Stammdaten (Empfänger)'!C22="Ja",CONCATENATE("AUSFÜLLHILFE: ",TRIM(Beispiel!O65)),"") ->  | I133: =SUM(I134:I140) -> 0
I134: 0 | L134: Keine Änderung
I135: 0 | L135: Keine Änderung
I136: 0 | L136: Keine Änderung
I137: 0 | L137: Keine Änderung
I138: 0 | L138: Keine Änderung
I139: 0 | L139: Keine Änderung
I140: 0 | L140: Keine Änderung
B141: Zwischensumme - direkte Kosten | I141: =I133+I126+I109+I79+I92+I62+I44+I6 -> 0
A142: 9 | B142: Verwaltungsgemeinkosten | D142: =IF('1. Stammdaten (Empfänger)'!C22="Ja",CONCATENATE("AUSFÜLLHILFE: ",TRIM(Beispiel!O69)),"") ->  | I142: =I143 -> 0
B143: Verwaltungsgemeinkosten (auf Budgetlinie 1-X) | D143: 0.12 | H143: =I141 -> 0 | I143: =ROUND(D143*H143,2) -> 0 | L143: Keine Änderung
B144: Zwischensumme - Finanzierung durch GIZ (bis zu - gegen Nachweis)* (direkte Kosten + Verwaltungsgemeinkosten) | I144: =I141+I142 -> 0
B145: GIZ Anteil (bis zu - gegen Nachweis)* | I145: =I144 -> 0
B147: *Alle Budgetlinien (mit Ausnahme der Verwaltungsgemeinkosten) müssen gegen Nachweis abgerechnet werden.
B149: Information: Sofern Vergaben für externe Dienstleistungen und/oder für Sachgüter und/oder Lieferungen von GIZ Geldern finanziert werden sollen, müssen die relevanten Vergaberichtlinien gemäß Vertragstext eingehalten werden!
B152: Gewinne der Drittempfänger-Organisation werden nicht finanziert.
B154: Bei Vertragsergänzungen: Bitte nehmen Sie Budgetanpassungen auf Basis des zuletzt vertraglich vereinbartem Budgets vor und markieren Sie die Änderungen farblich. Kosten, die aufgrund von Währungsschwankungen enstehen, können nicht von der GIZ übernommen werden.

Sheet Beispiel
B1: CONFIDENTIAL
A2: Budget/Finanzierungsplan - Anlage 1 | J2: ='1. Stammdaten (Empfänger)'!C35 -> 00:00:00 | O2: Bearbeitungshinweise: Dies dient nur zur Orientierung für den Reiter "Budget Finanzierungen".
J3: 2024-02
B4: Beschreibung | C4: Code | D4: Anzahl | E4: Einheit (Person) | F4: Anzahl | G4: Einheit (z.B. Monat, Vertrag, Flug…) | H4: Förderfähig bis zu in EUR (Preis pro Einheit) | I4: Gesamt GIZ Anteil in EUR (bis zu) | J4: Eigenbeitrag / Drittfinanzierung in EUR (bis zu) | O4: Generelle Hinweise: Dieses Format des Budgets gilt als Abrechnungsgrundlage. Sie können gerne für Ihren internen Gebrauch weitere Dateien mit ausführlicheren Informationen erstellen. Alle Positionen, die im Budget aufgeführt sind, müssen sich in der Projektbeschreibung wiederfinden, um den Projektbezug ersichtlich zu machen. Die Tabelle ist mit Formeln gespeist, welche beibehalten werden müssen. Bitte behalten Sie die Formatierung mit zwei Nachkommastellen bei. Es empfiehlt sich, Einheiten, wenn möglich, aufzurunden. Die Kosten werden mit einem Wert "bis zu" vereinbart.
B5: Hinweis: Blaue Felder durch die Zuschussempfangende Partei auszufüllen | I5: Hinweis: Wird automatisch ausgefüllt | O5: Hinweise für die Erstellung
A6: 1 | B6: Personal (Hinweis: Es können ausschließlich Personaleinzelkosten (monatliches Arbeitgeberbrutto-Entgelt) abgerechnet werden. Zuschläge wie Personalgemeinkosten, die anteilig auf Personal berechnet werden, sind nicht förderfähig. Bitte erfassen Sie nur Funktionsbezeichnungen, keine Namen von Einzelpersonen. a) Kosten für Arbeitnehmer*innen der ZE (nur Mitarbeitende ihrer Organisation): Der Nachweis muss in Form von Gehaltsabrechnungen bzw. bei anteiliger Finanzierung in Form von Gehaltsabrechnungen und Zeitaufschrieben erfolgen (siehe Link in 1b). b) Kosten für integrierte Gutachter*innen (Selbständige oder Angestellte Dritter, die an die ZE entsandt wurden), welche jeweils unter vergleichbaren Bedingungen wie angestellte Arbeitnehmer*innen tätig sind, sofern dies nach dem jeweils anwendbaren Recht des betreffenden Vertrages mit diesen integrierten Gutachter*innen rechtlich zulässig ist. Nachweisformen siehe: (Anlage 3a - Anforderungen an Zuschussempfänger hinsichtlich Budget und finanzieller Abwicklung) | I6: =SUM(I7:I11) -> 94000 | J6: Die anteilige Finanzierung von Budgetlinien soll vermieden und nur auf Personalkosten sowie Fair-Shared-Kosten angewandt werden. Weitere Kosten, welche im Rahmen der Projektumsetzung anfallen und nicht durch die GIZ finanziert werden, sind separat zu kalkulieren, entweder als Eigenbeitrag oder finanzieller Beitrag Dritter. | O6: Die Spalte "Förderfähig bis zu" sollte immer das monatliche Arbeitgeberbrutto-Entgelt ausweisen. Bitte in der Spalte D den Prozentsatz angeben, den die GIZ finanzieren soll. Gesetzliche Personalnebenkosten, die nach dem Recht des jeweiligen Arbeitsvertrags anfallen, können angerechnet werden. Grundsätzlich finanzierbar sind Sozialabgaben, und arbeitsvertraglich oder tariflichvertraglich vereinbarte Zahlungen (ausgenommen sind Bonuszahlungen oder Gewinnbeteiligungen). Davon abweichende Nebenkosten müssen vor Vertragserstellung abgesprochen, geprüft und als Notiz in die Budgetzeile aufgenommen werden. Verträge über Minijobs oder studentische Hilfskräfte sind den Personalkosten zuzuordnen, auch wenn keine Sozialabgaben anfallen. Wenn anteilig mehrere Personen finanziert werden sollen (bspw. 3 Personen à 75%) - bitte entsprechend die Anzahl der Monate erhöhen und die Anzahl der Personen in der Beschreibung der Budgetlinie aufnehmen.
B7: Projektmanager | D7: 1 | E7: Person | F7: 20 | G7: Monate | H7: 3000 | I7: =D7*F7*H7 -> 60000
B8: Finanzmanagerin | D8: 0.5 | E8: Person | F8: 20 | G8: Monate | H8: 2200 | I8: =D8*F8*H8 -> 22000
B9: Severance Payments / gesetzlich geregelte Rückstellungen | D9: 1 | E9: Person | F9: 20 | G9: Monate | H9: 600 | I9: =D9*F9*H9 -> 12000
E10: Person | G10: Monate | I10: 0
E11: Person | G11: Monate | I11: 0
A12: 2 | B12: Externe Dienstleistungen (Position bzw. Funktion) | I12: =SUM(I13:I22) -> 7000 | O12: Bitte Funktionstitel angeben; keine Details des Vertrages (Arbeitsstunden etc); nur den geplanten Wert nennen (die relevanten Vergaberichtlinien gemäß Vertragstext müssen eingehalten werden!); pro Leistungsart sollte eine Budgetzeile verwendet werden (alle Kosten, die im Rahmen der Leistungserbringung unter einem Dienstleistungsvertrag anfallen bspw. Training, Reisen, werden in einer Budgetlinie dargestellt). Veranstaltungen: Leistungen die vom selben Anbieter erbracht werden, sollen in einer Budgetzeile dargestellt werden. (z. Bsp: wenn Catering und der Veranstaltungsort von einem Hotel angeboten werden, dann gehören diese in eine Budgetzeile, wenn ein anderes Hotel für Übernachtungen gebucht wird, gehört dieses in eine einzelne Budgetlinie) Einnahmen, die die ZE aus dem Veranstaltungsbetrieb erhält, können nicht aus dem Vertrag finanziert werden. Nur tatsächliche nachweisbare Kosten werden finanziert.
B13: Catering & Raummiete | D13: Vertrag/Verträge | I13: 2000
B14: Expert*in für Solartechnik | D14: Vertrag/Verträge | I14: 5000
B15: Expert*in für ….. | D15: Vertrag/Verträge | I15: =H15 -> 0
B16: externe Arbeitskräfte ( nicht im sozialversicherungpfl. Angestellenverhältnis mit ZE) | D16: Vertrag/Verträge | I16: 0
B17: Beratungsaufträge | D17: Vertrag/Verträge | I17: 0
B18: externe Unternehmen, z.B. für Bus-Transporte | D18: Vertrag/Verträge | I18: 0
D19: Vertrag/Verträge | I19: 0
D20: Vertrag/Verträge | I20: 0
D21: Vertrag/Verträge | I21: 0
D22: Vertrag/Verträge | I22: 0
A23: 3 | B23: Transportkosten / Reisekosten | I23: =SUM(I24:I30) -> 14500 | O23: Zu Reisekosten zählen üblicherweise alle Arten von Transport (z. B. Treibstoff, Fahrzeugmiete, Flugkosten, Bustransfer, Kilometerpauschalen (falls budgetiert), Übernachtung, Tagegelder, Visa). Die Abrechnung erfolgt anhand von Rechnungen und/oder geeigneter Nachweise für Tagegelder (z. B. von Teilnehmenden unterzeichnete Spesenabrechnungen). Bitte geben Sie keine Menge der Flüge an - bei Abweichungen sind Vertragsergänzungen notwendig. Sollte ein Audit stattfinden, wird die Zahl der Flüge geprüft.
B24: internationale Flüge | D24: Flüge | I24: 4000
B25: nationale Flüge | D25: Flüge | I25: 500
B26: internationale Reisekosten ( Tage-/ Übernachtungsgeld, Transportmittel, Visa, notwendige Impfungen ) | D26: Einheit | I26: 10000
B27: nationale Reisekosten ( Tage-/Übernachtungsgeld, Transportmittel ) | D27: Einheit | I27: =H27 -> 0
B28: Transportkosten von Waren | D28: Einheit | I28: 0
B29: Reisekosten der Workshop-Teilnehmenden | D29: Einheit | I29: 0
I30: 0
A31: 4 | B31: CO2-Kompensation von Flugreisen | I31: =SUM(I32:I37) -> 500 | O31: CO2-Emissionen, die durch Flugreisen entstehen, können - falls die Vermeidung und Reduktion nicht möglich ist - kompensiert werden. Voraussetzung ist, dass diese Flugreisen in Budgetlinie "Transportkosten / Reisekosten" finanziert werden. Nachweis der Flug-Kompensationskosten sind Belege des Kompensationsanbieters aus denen folgende Informationen hervorgehen müssen: Flugstrecke (Start und Ziel), Datum, Buchungsklasse und die errechnete Menge an CO2. Sollten diese Informationen nicht auf den Belegen des Kompensationsanbieters genannt sein, sind die Angaben zur Flugstecke (Start, Ziel, Datum, Buchungsklasse) und die errechnete Menge an CO2 von der ZE zu ergänzen.
B32: internationale Flüge | D32: Kompensation | I32: 200
B33: nationale Flüge | D33: Kompensation | I33: 300
I34: =H34 -> 0
I35: 0
I36: 0
I37: 0
A38: 5 | B38: Beschaffung von Sachgütern | I38: =SUM(I39:I48) -> 4000 | O38: Güter, die beschafft und innerhalb von einer Rechnung nachgewiesen werden, sollen in einer Budgetzeile dargestellt werden. Z. B. kann IT Equipment als eine Budgetlinie aufgeführt werden - in diesem Fall sollte in Klammern näher definiert werden, welche Sachgüter voraussichtlich beschafft werden. Im Fall von Medikamente, Pestiziden oder Mineraldünger sind weitere Details für eine Freigabe notwendig.
B39: IT Equipment (Laptop, Drucker, Beamer, Zubehör) | D39: Beschaffung | I39: 4000
B40: Fotoausrüstung (Kamera und Zubehör) | E40: Beschaffung | I40: =H40 -> 0
B41: Maschine XY (konkrete Angabe, welche Maschine - aber kein konkretes Modell einer Firma nennen!) | E41: Beschaffung | I41: 0
B42: Mobiliar (Schreibtische, Stühle, Schränke) | E42: Beschaffung | I42: 0
B43: Fahrzeuge genau angeben, welche Art: z.B. Elektroauto, gepanzerter SUV, Motorroller ... | E43: Beschaffung | I43: 0
B44: Mobiltelefone | E44: Beschaffung | I44: 0
B45: in kind Beiträge an Drittbegüstigte (Nachweis in Form von Beschaffungsbelege und Übergabeprotokoll) | I45: 0
I46: 0
I47: 0
I48: 0
A49: 6 | B49: Sonstige Kosten / Verbrauchsmaterialien | I49: =SUM(I50:I59) -> 100 | O49: Bitte beachten Sie, dass indirekte Kosten unter die Verwaltungsgemeinkosten fallen. Es können nur direkte Kosten als einzelne Budgetlinien budgetiert werden. Wenn Mietkosten angegeben werden können nur direkte Kosten, sprich die Kaltmiete, kalkuliert werden. Die Nebenkosten sind als indirekte Kosten und somit in die Verwaltungsgemeinkosten mit einzurechnen. Im Gegensatz zu beschafften Sachgütern, die über einen längeren Zeitraum verwendet werden, handelt es sich bei Verbrauchsmaterialien um Güter, die aufgebraucht werden - wie bspw. Druckerpatronen, Druckerpapier.
B50: Büromaterialien (Druckerpapier, Druckerpatronen, Schreibmaterialien) | D50: Einheit | I50: 100
B51: IT-Software, Lizensen | I51: =H51 -> 0
B52: Verpackungsmaterial für xxx | I52: 0
B53: Laborbedarf | I53: 0
B54: Hygienebedarf | I54: 0
B55: Werkzeug | I55: 0
B56: Wasser | I56: 0
B57: Flyer / Werbematerial | I57: 0
B58: Telefonkosten, Telefonkarten… | I58: 0
I59: =H59 -> 0
A60: 7 | B60: Mittel zur direkten Unterstützung von Drittbegünstigten (Hinweis: Diese Budgetlinie bezieht sich ausschließlich auf finanzielle Beiträge an Drittbegünstigte. Die Beiträge dürfen nicht für den Erwerb von Medikamenten, Pestiziden und/oder Mineraldüngern verwendet werden. Das Auswahlverfahren für die Drittbegünstigten muss in der Projektbeschreibung verdeutlicht werden. Nachweise: siehe Unterbudgetlinie) | I60: =SUM(I61:I64) -> 75600 | O60: Bitte den Hinweis in der Budgetzeile beachten. Nachweise müssen im Budget vereinbart und Auswahlkriterien in der Projektbeschreibung dargestellt werden. Wichtig: Hier handelt es sich nur um Begünstigte, die von dem Projekt der ZE profitieren. Dazu gehören Start-Up Förderung, Förderung von Initiativen, Cash for Work, Förderwettbewerbe, Stipendien und ähnliches. Absprache zu Nachweisen ist erforderlich. Zu den Details ist eine Beratung beim Vertragsmanagement notwendig.
B61: Cash for Work (Abrechnung erfolgt gegen Teilnahmeliste, Empfangsbestätigung per Unterschrift oder Fingerabdruck; Auswahlverfahren ist in der Projektbeschreibung dargestellt) | D61: 20 | E61: Personen | H61: 30 | I61: =D61*H61 -> 600
B62: Start-up-Finanzierung (Abrechnung erfolgt gegen Nachweis der tatsächlichen Verwendung durch den/die Drittbegünstigten); Ziffer 5.2 des Vertrages findet Anwendung. | D62: 5 | E62: Start-ups | H62: 15000 | I62: =D62*H62 -> 75000
I63: 0
I64: 0
A65: 8 | B65: Fair Shared Costs (gemäß dem Fair Shared Cost Modell der ZE) | I65: =SUM(I66:I67) -> 0 | O65: Diese Budgetlinie ist nur für ZE-Organisationen, die in ihren Buchhaltungssystemen mit einer Verteilung bzw. Umlage der Gemeinkosten arbeiten und diese entsprechend nachweisen können, sofern diese Kosten nicht den Verwaltungsgemeinkosten zugeordnet werden. Die Nachweisart wird für jeden Einzelfall festgelegt. Ein konkretes Beispiel ist der prozentuale Nachweis anhand der Gesamtkosten und Zeitaufschriebe. Bitte den Reiter "Beispiel" beachten und den**Hinweistext bei Anwendung einzufügen.
B66: Direkte Fair-Shared-Kosten (6,42% auf die direkten Kosten der Budgetlinien 1 - 6, basierend auf dem Faire-Shared-Costs-Modell der ZE). | D66: Einheit | I66: =H66 -> 0
D67: Einheit | I67: =H67 -> 0
B68: Zwischensumme - direkte Kosten | I68: =I49+I38+I12+I6+I23+I60+I65+I31 -> 195700
A69: 9 | B69: Verwaltungsgemeinkosten | I69: =I70 -> 9785 | O69: Die Verwaltungsgemeinkosten werden normalerweise als Eigenbetrag der ZE übernommen. Wenn die Übernahme durch die ZE nicht möglich ist, kann die GIZ einen kleinen Anteil der Verwaltungsgemeinkosten übernehmen. Die Art und Höhe der Kosten müssen ggf. vorab durch einen Wirtschaftsprüferenden bestätigt werden. Wenn sich die Verwaltungsgemeinkosten auf weniger Budgetlinien beziehen ist eine Information ans Vertragsmanagement erforderlich.
B70: Verwaltungsgemeinkosten (auf Budgetlinie 1-8) | D70: 0.05 | H70: =I68 -> 195700 | I70: =ROUND(D70*H70,2) -> 9785
B71: Zwischensumme - Finanzierung durch GIZ (bis zu - gegen Nachweis)* (direkte Kosten + Verwaltungsgemeinkosten) | I71: =I68+I69 -> 205485
A72: 10 | B72: Weiterleitung von Mitteln an Drittempfänger - ein detailliertes Budget muss eingereicht werden - | I72: =SUM(I73:I75) -> 10000 | O72: Hier handelt es sich um Drittempfänger-Organisationen (Co-Implementierende Organisationen). Es sind Partnerorganisationen, die eigenständig einen Teil des Projekts umsetzen. Es muss ein gesondertes Budget eingereicht und eine kaufmännische und rechtliche Eignungsprüfung durchgeführt werden.
B73: OPQ | D73: Weiterleitung | I73: 10000
B74: XYZ (Name Drittempfänger-Organisation) | D74: Weiterleitung | I74: =H74 -> 0
B75: XYZ (Name Drittempfänger-Organisation) | D75: Weiterleitung | I75: 0 | K75: Anteile in Prozent
B76: GIZ Anteil (bis zu - gegen Nachweis)* | I76: =I71+I72 -> 215485 | J76: =I76 -> 215485 | K76: =J76/$I$82 -> 0.9349198429
A77: 11 | B77: Eigenbeitrag / Drittfinanzierung | J77: =SUM(J78:J80) -> 15000 | O77: Geben Sie nur den Gesamtwert des Eigenbeitrags/der Drittfinanzierung an. Eine kurze Beschreibung der Anteilsfinanzierung ist in die Projektbeschreibung mit aufzunehmen.
B78: ABC(Eigenbeitrag) | D78: Beitrag | H78: 5000 | J78: =H78 -> 5000 | K78: =J78/$I$82 -> 0.02169338569
B79: DEF (Drittfinanzierung) | D79: Beitrag | H79: 10000 | J79: =H79 -> 10000 | K79: 0.04338677137
D80: Beitrag | H80: =_xlfn.IFS('1. Stammdaten (Empfänger)'!$C$11="Auswählen", "",'1. Stammdaten (Empfänger)'!$C$11>0,'1. Stammdaten (Empfänger)'!G28, TRUE,"") ->  | K80: =IFERROR(J80/$I$82,"") -> 
D81: Beitrag | H81: =_xlfn.IFS('1. Stammdaten (Empfänger)'!$C$11="Auswählen", "",'1. Stammdaten (Empfänger)'!$C$11>0,'1. Stammdaten (Empfänger)'!G29, TRUE,"") ->  | J81: =H81 ->  | K81: =IFERROR(J81/$I$82,"") -> 
B82: Gesamtfinanzierung | I82: =I76+J77 -> 230485 | K82: =SUM(K76:K81) -> 1
B84: *Alle Budgetlinien (mit Ausnahme der Verwaltungsgemeinkosten) müssen gegen Nachweis abgerechnet werden.
B86: ** Die Abrechnung des GIZ-Anteils an den fair shared cost erfolgt durch prozentualen Nachweis anhand der Gesamtkosten und Zeitaufschriebe. (Anteil der Arbeitsstunden für das GIZ-Projekt und der Gesamtbelegschaft) und tatsächliche Kostenbuchungen für Büro- und Einrichtungskosten. Die Büro- und Einrichtungskosten müssen nach Kostenarten (z.B. Büromiete, Kommunikationskosten, Wasser und Strom usw.) aufgeschlüsselt werden und sich zu einer Gesamtsumme addieren. Als Nachweis dienen die eingereichten Belege. Die Berechnung der VZÄ und die Kostenbuchungen der Büro- und Einrichtungskosten werden durch den von der GIZ beauftragten Wirtschaftsprüfer überprüft.
B88: Information: Sofern Vergaben für externe Dienstleistungen und/oder für Sachgüter und/oder Lieferungen von GIZ Geldern finanziert werden sollen, müssen die relevanten Vergaberichtlinien gemäß Vertragstext eingehalten werden!
B91: Gewinne der ZE werden nicht finanziert.
B92: Eigenbelege für die Nutzung eigener Einrichtungen und Räume der ZE / der Drittempfänger-Organisation können eingereicht werden, wenn zudem bestätigt wird, dass a) es sich um die Umverteilung von Selbstkosten der ZE / der Drittempfänger-Organisation innerhalb ihrer eigenen Organisation handelt; Die GIZ behält sich vor, die Selbstkosten stichprobenartig zu prüfen. b) eine Nutzung vergleichbarer Einrichtungen zu Marktpreisen keine Kostenersparnis bedeutet.
B94: Bei Vertragsergänzungen: Bitte nehmen Sie Budgetanpassungen auf Basis des zuletzt vertraglich vereinbartem Budgets vor und markieren Sie die Änderungen farblich. Kosten, die aufgrund von Währungsschwankungen enstehen, können nicht von der GIZ übernommen werden. | O94: Im Antrag auf Änderung des Vertrages sollen die Budgetumwidmungen erläutert werden. Insbesondere bei der Erhöhung von Personalkosten ist eine Begründung zu nennen.
